[Event "Late-Titled-Tuesday-Blitz-June-04-2024"]
[Site "Chess.com"]
[Date "2024.06.04"]
[Round "1"]
[White "GiorgianBarbosa"]
[Black "Msb2"]
[Result "0-1"]
[WhiteElo "2510"]
[BlackElo "3038"]
[TimeControl "180+1"]
[EndTime "14:04:59 PDT"]
[Termination "Msb2 won by resignation"]

1. c4 {[%clk 0:03:00.1]} 1... e6 {[%clk 0:03:00.2]} 2. g3 {[%clk 0:03:00.1]}
2... d5 {[%clk 0:03:01.1]} 3. Bg2 {[%clk 0:03:01]} 3... Nf6 {[%clk 0:03:01.6]}
4. Nf3 {[%clk 0:03:01.9]} 4... Nc6 {[%clk 0:03:02.3]} 5. O-O {[%clk 0:02:59]}
5... Bd6 {[%clk 0:03:02.9]} 6. d4 {[%clk 0:02:58.7]} 6... O-O {[%clk 0:03:03.2]}
7. c5 {[%clk 0:02:52]} 7... Be7 {[%clk 0:03:03.2]} 8. Nc3 {[%clk 0:02:51.9]}
8... b6 {[%clk 0:03:03.7]} 9. cxb6 {[%clk 0:02:25.6]} 9... axb6 {[%clk
0:03:04.6]} 10. a3 {[%clk 0:02:25.9]} 10... Na5 {[%clk 0:02:59.2]} 11. Bg5
{[%clk 0:02:23.6]} 11... h6 {[%clk 0:02:57.9]} 12. Bxf6 {[%clk 0:02:23.6]} 12...
Bxf6 {[%clk 0:02:58.8]} 13. e4 {[%clk 0:02:20.6]} 13... Nc4 {[%clk 0:02:55.8]}
14. Ra2 {[%clk 0:02:11.9]} 14... dxe4 {[%clk 0:02:47.3]} 15. Nxe4 {[%clk
0:02:12.8]} 15... Bb7 {[%clk 0:02:47.6]} 16. Qd3 {[%clk 0:01:53.9]} 16... Nd6
{[%clk 0:02:42.9]} 17. Nxf6+ {[%clk 0:01:48.9]} 17... Qxf6 {[%clk 0:02:43.8]}
18. b4 {[%clk 0:01:37]} 18... Ba6 {[%clk 0:02:42.3]} 19. Qe3 {[%clk 0:01:24.6]}
19... Bxf1 {[%clk 0:02:39.6]} 20. Kxf1 {[%clk 0:01:22.9]} 20... Nf5 {[%clk
0:02:39.9]} 21. Qc3 {[%clk 0:01:21.4]} 21... c5 {[%clk 0:02:35.5]} 22. bxc5
{[%clk 0:01:15.3]} 22... bxc5 {[%clk 0:02:36]} 23. Qxc5 {[%clk 0:01:16.2]} 23...
Rac8 {[%clk 0:02:36.4]} 24. Qe5 {[%clk 0:01:16.6]} 24... Rc1+ {[%clk 0:02:36.6]}
25. Ne1 {[%clk 0:01:07]} 25... Nxd4 {[%clk 0:02:30]} 26. Qxf6 {[%clk 0:01:02.1]}
26... gxf6 {[%clk 0:02:30.9]} 27. a4 {[%clk 0:01:02.6]} 27... Rb8 {[%clk
0:02:29.2]} 28. Be4 {[%clk 0:00:54.2]} 28... f5 {[%clk 0:02:29.2]} 29. Bd3
{[%clk 0:00:54.1]} 29... Nf3 {[%clk 0:02:28.8]} 30. Re2 {[%clk 0:00:44.1]} 30...
Rb3 {[%clk 0:02:28.4]} 31. Bb5 {[%clk 0:00:35.2]} 31... Rbb1 {[%clk 0:02:26.7]}
32. Kg2 {[%clk 0:00:33.3]} 32... Nxe1+ {[%clk 0:02:26.3]} 33. Kh3 {[%clk
0:00:34.2]} 33... Nf3 {[%clk 0:02:26.4]} 34. Ra2 {[%clk 0:00:33.6]} 34... Ng5+
{[%clk 0:02:25]} 35. Kh4 {[%clk 0:00:32.9]} 35... Kg7 {[%clk 0:02:14.7]} 36. f4
{[%clk 0:00:31.1]} 36... Ne4 {[%clk 0:02:14.4]} 37. Bc6 {[%clk 0:00:29.1]} 37...
Rxc6 {[%clk 0:02:14]} 0-1

[Event "Late-Titled-Tuesday-Blitz-June-04-2024"]
[Site "Chess.com"]
[Date "2024.06.04"]
[Round "1"]
[White "Zura_19"]
[Black "Sacbutt"]
[Result "1-0"]
[WhiteElo "2624"]
[BlackElo "2314"]
[TimeControl "180+1"]
[EndTime "14:05:00 PDT"]
[Termination "Zura_19 won by resignation"]

1. d4 {[%clk 0:02:59.6]} 1... Nf6 {[%clk 0:02:59.1]} 2. Bg5 {[%clk 0:02:59.3]}
2... d5 {[%clk 0:02:58.2]} 3. Bxf6 {[%clk 0:02:58.3]} 3... exf6 {[%clk
0:02:59.1]} 4. e3 {[%clk 0:02:56.9]} 4... Bd6 {[%clk 0:02:58.8]} 5. c4 {[%clk
0:02:56.4]} 5... c6 {[%clk 0:02:58.4]} 6. Nc3 {[%clk 0:02:56]} 6... dxc4 {[%clk
0:02:54.8]} 7. Bxc4 {[%clk 0:02:54.9]} 7... O-O {[%clk 0:02:55.2]} 8. Nge2
{[%clk 0:02:54.5]} 8... Be6 {[%clk 0:02:54.6]} 9. Bxe6 {[%clk 0:02:47.1]} 9...
fxe6 {[%clk 0:02:55.5]} 10. Qb3 {[%clk 0:02:47.4]} 10... Qd7 {[%clk 0:02:52.2]}
11. O-O {[%clk 0:02:47.1]} 11... Na6 {[%clk 0:02:49.6]} 12. a3 {[%clk
0:02:38.9]} 12... Rae8 {[%clk 0:02:48.1]} 13. Rfd1 {[%clk 0:02:37.8]} 13... Qc7
{[%clk 0:02:47.1]} 14. h3 {[%clk 0:02:33.8]} 14... Qb6 {[%clk 0:02:46.6]} 15.
Qa2 {[%clk 0:02:31.4]} 15... Kh8 {[%clk 0:02:45.4]} 16. b4 {[%clk 0:02:27]}
16... Nc7 {[%clk 0:02:27.9]} 17. Ne4 {[%clk 0:02:12.9]} 17... Be7 {[%clk
0:02:27]} 18. Rac1 {[%clk 0:02:08.3]} 18... f5 {[%clk 0:02:11]} 19. Nc5 {[%clk
0:02:00.7]} 19... Bxc5 {[%clk 0:02:10.5]} 20. dxc5 {[%clk 0:02:00.5]} 20... Qa6
{[%clk 0:02:04.7]} 21. Rd7 {[%clk 0:01:59.4]} 21... Nd5 {[%clk 0:01:55.9]} 22.
Qb2 {[%clk 0:01:59.4]} 22... Re7 {[%clk 0:01:48]} 23. Rxe7 {[%clk 0:01:57.1]}
23... Nxe7 {[%clk 0:01:48.9]} 24. Nf4 {[%clk 0:01:57.3]} 24... Rf6 {[%clk
0:01:41.2]} 25. Rd1 {[%clk 0:01:56.6]} 25... Nd5 {[%clk 0:01:31.8]} 26. Qe5
{[%clk 0:01:54.9]} 26... h6 {[%clk 0:01:20.5]} 27. Nxe6 {[%clk 0:01:52.2]} 27...
Qxa3 {[%clk 0:01:18]} 28. Qb8+ {[%clk 0:01:48.6]} 28... Kh7 {[%clk 0:01:17.8]}
29. Nf8+ {[%clk 0:01:45.9]} 29... Rxf8 {[%clk 0:01:16.5]} 30. Qxf8 {[%clk
0:01:46.8]} 30... Qxb4 {[%clk 0:01:02.4]} 31. Qxf5+ {[%clk 0:01:46.2]} 31... Kg8
{[%clk 0:01:01.9]} 32. e4 {[%clk 0:01:43.8]} 32... Nf6 {[%clk 0:00:55.9]} 33.
Rd8+ {[%clk 0:01:37.2]} 33... Kf7 {[%clk 0:00:56]} 34. e5 {[%clk 0:01:35.8]}
34... Qxc5 {[%clk 0:00:52.6]} 35. e6+ {[%clk 0:01:35.5]} 35... Ke7 {[%clk
0:00:51.1]} 36. Qxc5+ {[%clk 0:01:35.7]} 1-0

[Event "Late-Titled-Tuesday-Blitz-June-04-2024"]
[Site "Chess.com"]
[Date "2024.06.04"]
[Round "1"]
[White "YurasovMat-2012"]
[Black "LoonsDeKoeben"]
[Result "1-0"]
[WhiteElo "2600"]
[BlackElo "2282"]
[TimeControl "180+1"]
[EndTime "14:05:02 PDT"]
[Termination "YurasovMat-2012 won by resignation"]

1. e4 {[%clk 0:03:00.9]} 1... b6 {[%clk 0:03:00]} 2. Nf3 {[%clk 0:03:00.8]} 2...
Bb7 {[%clk 0:03:00.5]} 3. Nc3 {[%clk 0:03:01.2]} 3... e6 {[%clk 0:03:00.9]} 4.
d4 {[%clk 0:03:01.2]} 4... Bb4 {[%clk 0:02:59.8]} 5. Bd3 {[%clk 0:03:01.2]} 5...
Nf6 {[%clk 0:02:57]} 6. Qe2 {[%clk 0:03:00.6]} 6... d5 {[%clk 0:02:55.2]} 7.
exd5 {[%clk 0:02:55.6]} 7... Nxd5 {[%clk 0:02:42.6]} 8. Bd2 {[%clk 0:02:55.6]}
8... Nxc3 {[%clk 0:02:33.8]} 9. bxc3 {[%clk 0:02:54.6]} 9... Bd6 {[%clk
0:02:34]} 10. Ng5 {[%clk 0:02:52.4]} 10... h6 {[%clk 0:02:27.7]} 11. Qh5 {[%clk
0:02:33.4]} 11... Qf6 {[%clk 0:02:27.4]} 12. Nxf7 {[%clk 0:02:30.6]} 12... Qxf7
{[%clk 0:02:05.4]} 13. Bg6 {[%clk 0:02:30]} 13... Rf8 {[%clk 0:02:06.1]} 14.
Bxf7+ {[%clk 0:02:28.7]} 14... Rxf7 {[%clk 0:02:07]} 15. O-O {[%clk 0:02:27.5]}
15... Nd7 {[%clk 0:01:57.9]} 16. Rfe1 {[%clk 0:02:26.2]} 16... Kf8 {[%clk
0:01:58.3]} 17. Rxe6 {[%clk 0:02:25.1]} 17... Kg8 {[%clk 0:01:58.7]} 18. Rae1
{[%clk 0:02:23.5]} 18... Raf8 {[%clk 0:01:58.7]} 19. f3 {[%clk 0:02:12.1]} 19...
Nf6 {[%clk 0:01:57.4]} 20. Qg6 {[%clk 0:02:10.9]} 20... Bc8 {[%clk 0:01:56.5]}
21. Rxd6 {[%clk 0:02:08.8]} 21... cxd6 {[%clk 0:01:56.3]} 22. Bxh6 {[%clk
0:02:08.2]} 22... Kh8 {[%clk 0:01:48]} 23. Bd2 {[%clk 0:02:04.9]} 23... Kg8
{[%clk 0:01:48.3]} 24. c4 {[%clk 0:02:02.3]} 24... Ba6 {[%clk 0:01:35.6]} 25.
Re6 {[%clk 0:02:00.3]} 25... Bxc4 {[%clk 0:01:33.9]} 26. Rxd6 {[%clk 0:02:00.3]}
26... Re7 {[%clk 0:01:25]} 27. h4 {[%clk 0:01:53.3]} 27... Ne8 {[%clk
0:00:47.1]} 28. Rd8 {[%clk 0:01:47.7]} 28... Bf7 {[%clk 0:00:45.7]} 29. Qc6
{[%clk 0:01:45.4]} 29... Re2 {[%clk 0:00:38.6]} 30. Bb4 {[%clk 0:01:43.6]} 1-0

[Event "Late-Titled-Tuesday-Blitz-June-04-2024"]
[Site "Chess.com"]
[Date "2024.06.04"]
[Round "1"]
[White "King_Deded4d5"]
[Black "CMmauricio"]
[Result "0-1"]
[WhiteElo "2449"]
[BlackElo "2809"]
[TimeControl "180+1"]
[EndTime "14:05:07 PDT"]
[Termination "CMmauricio won by resignation"]

1. d4 {[%clk 0:03:00.9]} 1... f5 {[%clk 0:02:59.8]} 2. Nc3 {[%clk 0:02:58.2]}
2... d5 {[%clk 0:02:59]} 3. Bf4 {[%clk 0:02:57.4]} 3... Nf6 {[%clk 0:02:58.2]}
4. Nb5 {[%clk 0:02:55.8]} 4... Na6 {[%clk 0:02:58.2]} 5. e3 {[%clk 0:02:53.8]}
5... e6 {[%clk 0:02:58.4]} 6. c4 {[%clk 0:02:44.5]} 6... c6 {[%clk 0:02:57.2]}
7. Nc3 {[%clk 0:02:44.4]} 7... Nc7 {[%clk 0:02:56.6]} 8. Nf3 {[%clk 0:02:42.4]}
8... Bd6 {[%clk 0:02:55.5]} 9. Be2 {[%clk 0:02:21.6]} 9... O-O {[%clk
0:02:54.3]} 10. O-O {[%clk 0:02:21.9]} 10... Ne4 {[%clk 0:02:54.7]} 11. Bxd6
{[%clk 0:02:16.2]} 11... Nxd6 {[%clk 0:02:52.2]} 12. Ne5 {[%clk 0:02:16.3]}
12... Nce8 {[%clk 0:02:50.2]} 13. b4 {[%clk 0:02:11.3]} 13... Nf7 {[%clk
0:02:48]} 14. Nxf7 {[%clk 0:02:08.4]} 14... Rxf7 {[%clk 0:02:48.1]} 15. b5
{[%clk 0:02:08.6]} 15... Bd7 {[%clk 0:02:48.2]} 16. a4 {[%clk 0:02:07.9]} 16...
Rf6 {[%clk 0:02:47.8]} 17. f4 {[%clk 0:02:07.2]} 17... Rh6 {[%clk 0:02:48.2]}
18. a5 {[%clk 0:01:59.7]} 18... cxb5 {[%clk 0:02:45.8]} 19. cxd5 {[%clk
0:01:59.4]} 19... a6 {[%clk 0:02:45]} 20. Bf3 {[%clk 0:01:49]} 20... Nd6 {[%clk
0:02:42.1]} 21. Qb3 {[%clk 0:01:43.4]} 21... Qh4 {[%clk 0:02:39.5]} 22. h3
{[%clk 0:01:42.5]} 22... Re8 {[%clk 0:02:37.6]} 23. Rae1 {[%clk 0:01:17.6]}
23... Nc4 {[%clk 0:02:35.7]} 24. dxe6 {[%clk 0:01:12.8]} 24... Bxe6 {[%clk
0:02:33.8]} 25. d5 {[%clk 0:01:05.9]} 25... Bf7 {[%clk 0:02:31.7]} 26. e4 {[%clk
0:00:58.7]} 26... Nd2 {[%clk 0:02:30.1]} 27. Qd1 {[%clk 0:00:42.3]} 27... Nxf1
{[%clk 0:02:30.5]} 28. e5 {[%clk 0:00:31.5]} 28... Qxf4 {[%clk 0:02:13.7]} 29.
e6 {[%clk 0:00:31.6]} 29... Nd2 {[%clk 0:02:06.2]} 30. exf7+ {[%clk 0:00:23.1]}
30... Kxf7 {[%clk 0:02:07.1]} 31. Bh5+ {[%clk 0:00:23.7]} 31... g6 {[%clk
0:02:05.2]} 32. Rxe8 {[%clk 0:00:23.4]} 32... Kxe8 {[%clk 0:02:05.7]} 33. Qe2+
{[%clk 0:00:23.8]} 33... Kf8 {[%clk 0:02:02.3]} 0-1

[Event "Late-Titled-Tuesday-Blitz-June-04-2024"]
[Site "Chess.com"]
[Date "2024.06.04"]
[Round "1"]
[White "lamomiajunior"]
[Black "fpawn"]
[Result "1-0"]
[WhiteElo "2731"]
[BlackElo "2410"]
[TimeControl "180+1"]
[EndTime "14:05:07 PDT"]
[Termination "lamomiajunior won by resignation"]

1. e4 {[%clk 0:03:00.9]} 1... e5 {[%clk 0:02:59.2]} 2. Nf3 {[%clk 0:03:00.5]}
2... Nc6 {[%clk 0:02:59.2]} 3. Bc4 {[%clk 0:02:59.7]} 3... Bc5 {[%clk
0:02:58.6]} 4. c3 {[%clk 0:02:59.7]} 4... Nf6 {[%clk 0:02:58.2]} 5. d3 {[%clk
0:02:59.9]} 5... d6 {[%clk 0:02:58]} 6. Bg5 {[%clk 0:03:00.3]} 6... h6 {[%clk
0:02:55.5]} 7. Bh4 {[%clk 0:03:00.7]} 7... g5 {[%clk 0:02:55.1]} 8. Bg3 {[%clk
0:03:01]} 8... a6 {[%clk 0:02:53.3]} 9. a4 {[%clk 0:03:00.3]} 9... Bg4 {[%clk
0:02:49.3]} 10. h3 {[%clk 0:02:59.8]} 10... Bh5 {[%clk 0:02:48.7]} 11. Nbd2
{[%clk 0:03:00.5]} 11... O-O {[%clk 0:02:47.5]} 12. O-O {[%clk 0:02:59.2]} 12...
Kg7 {[%clk 0:02:46.1]} 13. b4 {[%clk 0:02:53]} 13... Ba7 {[%clk 0:02:45.7]} 14.
Qc2 {[%clk 0:02:51.8]} 14... Ne7 {[%clk 0:02:43.8]} 15. d4 {[%clk 0:02:49.9]}
15... exd4 {[%clk 0:02:33.4]} 16. cxd4 {[%clk 0:02:49.7]} 16... Bg6 {[%clk
0:02:31]} 17. Bd3 {[%clk 0:02:47.8]} 17... Re8 {[%clk 0:02:17.5]} 18. Rac1
{[%clk 0:02:46.7]} 18... Rc8 {[%clk 0:02:16.3]} 19. Rfe1 {[%clk 0:02:47.1]}
19... Nh5 {[%clk 0:02:15]} 20. Bh2 {[%clk 0:02:45.9]} 20... c6 {[%clk
0:02:08.1]} 21. Nc4 {[%clk 0:02:32.5]} 21... d5 {[%clk 0:01:58.8]} 22. Nd6
{[%clk 0:02:28.9]} 22... Bb8 {[%clk 0:01:56.4]} 23. Nxe8+ {[%clk 0:02:27.8]}
23... Qxe8 {[%clk 0:01:55.2]} 24. Bxb8 {[%clk 0:02:28.4]} 24... Rxb8 {[%clk
0:01:54.7]} 25. exd5 {[%clk 0:02:27.8]} 25... Bxd3 {[%clk 0:01:53.5]} 26. Qxd3
{[%clk 0:02:28.7]} 26... Nf4 {[%clk 0:01:52.8]} 27. Qe3 {[%clk 0:02:21.6]} 27...
Nfxd5 {[%clk 0:01:52.9]} 28. Qe5+ {[%clk 0:02:17.4]} 28... f6 {[%clk 0:01:53.3]}
29. Qd6 {[%clk 0:02:14.6]} 29... Qd8 {[%clk 0:01:50.7]} 30. Qc5 {[%clk
0:01:59.1]} 30... Ng6 {[%clk 0:01:40.5]} 31. b5 {[%clk 0:01:38.3]} 31... Ngf4
{[%clk 0:01:38.6]} 32. bxc6 {[%clk 0:01:33.2]} 32... bxc6 {[%clk 0:01:23.7]} 33.
Qa7+ {[%clk 0:01:28.3]} 33... Kg6 {[%clk 0:01:20.2]} 34. Rxc6 {[%clk 0:01:26.9]}
34... Rb2 {[%clk 0:01:11.2]} 35. Ne5+ {[%clk 0:01:19.9]} 35... Kh5 {[%clk
0:01:07.1]} 36. Qf7+ {[%clk 0:01:18.7]} 1-0

[Event "Late-Titled-Tuesday-Blitz-June-04-2024"]
[Site "Chess.com"]
[Date "2024.06.04"]
[Round "1"]
[White "szachmistrz2500"]
[Black "lachesisQ"]
[Result "0-1"]
[WhiteElo "2512"]
[BlackElo "3049"]
[TimeControl "180+1"]
[EndTime "14:05:09 PDT"]
[Termination "lachesisQ won by resignation"]

1. d4 {[%clk 0:03:00.9]} 1... Nf6 {[%clk 0:02:58.7]} 2. c4 {[%clk 0:03:00.2]}
2... g6 {[%clk 0:02:56.6]} 3. Nc3 {[%clk 0:02:59.4]} 3... d5 {[%clk 0:02:55.7]}
4. Nf3 {[%clk 0:02:55.5]} 4... Bg7 {[%clk 0:02:46.2]} 5. cxd5 {[%clk 0:02:50.7]}
5... Nxd5 {[%clk 0:02:46.1]} 6. Qb3 {[%clk 0:02:50.5]} 6... Nb6 {[%clk
0:02:45.8]} 7. Bf4 {[%clk 0:02:47]} 7... O-O {[%clk 0:02:41.8]} 8. e3 {[%clk
0:02:38.8]} 8... Be6 {[%clk 0:02:39.3]} 9. Qc2 {[%clk 0:02:37]} 9... Nc6 {[%clk
0:02:38.6]} 10. Be2 {[%clk 0:02:27.6]} 10... Nb4 {[%clk 0:02:33.8]} 11. Qd1
{[%clk 0:02:20.1]} 11... c5 {[%clk 0:02:30.8]} 12. dxc5 {[%clk 0:02:12.6]} 12...
Nc4 {[%clk 0:02:20.4]} 13. Qxd8 {[%clk 0:02:03.6]} 13... Rfxd8 {[%clk
0:02:17.6]} 14. Rc1 {[%clk 0:01:54]} 14... Nxb2 {[%clk 0:02:16]} 15. O-O {[%clk
0:01:28.1]} 15... N2d3 {[%clk 0:02:13.6]} 16. Bxd3 {[%clk 0:01:28.2]} 16... Nxd3
{[%clk 0:02:14.5]} 17. Rc2 {[%clk 0:01:28.6]} 17... Bf5 {[%clk 0:01:56.1]} 18.
e4 {[%clk 0:01:16.7]} 18... Nxf4 {[%clk 0:01:54.2]} 19. exf5 {[%clk 0:01:16.8]}
19... Bxc3 {[%clk 0:01:54.7]} 20. g3 {[%clk 0:01:14.6]} 20... Nd5 {[%clk
0:01:54.5]} 21. fxg6 {[%clk 0:01:09.3]} 21... hxg6 {[%clk 0:01:54.2]} 22. Rb1
{[%clk 0:01:06.8]} 22... b6 {[%clk 0:01:53.2]} 23. cxb6 {[%clk 0:01:05.1]} 23...
axb6 {[%clk 0:01:54.1]} 24. Nd2 {[%clk 0:01:03.1]} 24... Bxd2 {[%clk 0:01:52]}
25. Rxd2 {[%clk 0:01:02.9]} 25... e6 {[%clk 0:01:52.7]} 26. Rc2 {[%clk
0:01:01.8]} 26... Ra3 {[%clk 0:01:51.6]} 27. Kg2 {[%clk 0:01:01.5]} 27... Rda8
{[%clk 0:01:51.2]} 28. Rbb2 {[%clk 0:01:01.1]} 28... Kg7 {[%clk 0:01:50.8]} 29.
h4 {[%clk 0:01:00.8]} 29... R8a4 {[%clk 0:01:50.3]} 30. Re2 {[%clk 0:00:59.2]}
30... b5 {[%clk 0:01:48.1]} 31. Rec2 {[%clk 0:00:54.3]} 31... b4 {[%clk
0:01:45.8]} 32. Kf1 {[%clk 0:00:53.7]} 32... Nc3 {[%clk 0:01:45.4]} 33. Ke1
{[%clk 0:00:46.8]} 33... Rxa2 {[%clk 0:01:44.5]} 34. Rxa2 {[%clk 0:00:46.7]}
34... Rxa2 {[%clk 0:01:43.7]} 35. Rc1 {[%clk 0:00:46.9]} 35... b3 {[%clk
0:01:39.5]} 36. Rxc3 {[%clk 0:00:46.1]} 36... b2 {[%clk 0:01:39.7]} 37. Rb3
{[%clk 0:00:45.6]} 37... Ra1+ {[%clk 0:01:39.9]} 38. Kd2 {[%clk 0:00:46.2]}
38... b1=Q {[%clk 0:01:40.8]} 39. Rxb1 {[%clk 0:00:46.3]} 39... Rxb1 {[%clk
0:01:41.7]} 0-1

[Event "Late-Titled-Tuesday-Blitz-June-04-2024"]
[Site "Chess.com"]
[Date "2024.06.04"]
[Round "1"]
[White "Slovak_fighter2000"]
[Black "Lavandum24"]
[Result "1-0"]
[WhiteElo "2527"]
[BlackElo "1859"]
[TimeControl "180+1"]
[EndTime "14:05:19 PDT"]
[Termination "Slovak_fighter2000 won on time"]

1. d4 {[%clk 0:02:59.1]} 1... Nc6 {[%clk 0:02:57.3]} 2. d5 {[%clk 0:02:57.6]}
2... Ne5 {[%clk 0:02:57.1]} 3. e4 {[%clk 0:02:56.4]} 3... Ng6 {[%clk 0:02:40.7]}
4. h4 {[%clk 0:02:54.7]} 4... h5 {[%clk 0:02:35.4]} 5. Bg5 {[%clk 0:02:48.4]}
5... Nf6 {[%clk 0:02:15.2]} 6. Nc3 {[%clk 0:02:46.4]} 6... e5 {[%clk 0:02:12.8]}
7. Be2 {[%clk 0:02:44.1]} 7... Bb4 {[%clk 0:02:07.7]} 8. Bxh5 {[%clk 0:02:33.9]}
8... Be7 {[%clk 0:01:20.6]} 9. Bxg6 {[%clk 0:02:32]} 9... fxg6 {[%clk
0:01:19.6]} 10. Nf3 {[%clk 0:02:32.6]} 10... d6 {[%clk 0:01:15.1]} 11. Qe2
{[%clk 0:02:30.8]} 11... Bg4 {[%clk 0:01:13]} 12. O-O-O {[%clk 0:02:30.3]} 12...
Qd7 {[%clk 0:01:09.5]} 13. Qb5 {[%clk 0:02:28.2]} 13... O-O-O {[%clk 0:01:03.2]}
14. Qxd7+ {[%clk 0:02:27]} 14... Rxd7 {[%clk 0:00:55.2]} 15. Rde1 {[%clk
0:02:27.1]} 15... Nh5 {[%clk 0:00:40.1]} 16. Bxe7 {[%clk 0:02:23.4]} 16... Rxe7
{[%clk 0:00:38.6]} 17. Ng5 {[%clk 0:02:24.1]} 17... Nf4 {[%clk 0:00:36.3]} 18.
f3 {[%clk 0:02:22]} 18... Bd7 {[%clk 0:00:31.7]} 19. g3 {[%clk 0:02:21.1]} 19...
Nh5 {[%clk 0:00:25.8]} 20. Ne2 {[%clk 0:02:15.6]} 20... Nf6 {[%clk 0:00:19.3]}
21. Kd2 {[%clk 0:02:14.2]} 21... Kb8 {[%clk 0:00:19.3]} 22. Ke3 {[%clk
0:02:13.6]} 22... Rf8 {[%clk 0:00:14]} 23. g4 {[%clk 0:02:13.4]} 23... Rh8
{[%clk 0:00:12.5]} 24. Ng3 {[%clk 0:02:13.1]} 24... Bb5 {[%clk 0:00:08.8]} 25.
b3 {[%clk 0:02:12.6]} 25... Bd7 {[%clk 0:00:08.3]} 26. c4 {[%clk 0:02:12.7]}
26... Kc8 {[%clk 0:00:08.2]} 27. b4 {[%clk 0:02:12.9]} 27... b6 {[%clk
0:00:04.9]} 28. Rc1 {[%clk 0:02:12.3]} 28... Kd8 {[%clk 0:00:04.8]} 29. c5
{[%clk 0:02:11.7]} 29... bxc5 {[%clk 0:00:05.1]} 30. bxc5 {[%clk 0:02:12.6]}
30... Bc8 {[%clk 0:00:01.5]} 31. c6 {[%clk 0:02:11.4]} 31... Ke8 {[%clk
0:00:01.3]} 32. Rb1 {[%clk 0:02:11.2]} 32... Kd8 {[%clk 0:00:01.3]} 33. Rb8
{[%clk 0:02:10.8]} 1-0

[Event "Late-Titled-Tuesday-Blitz-June-04-2024"]
[Site "Chess.com"]
[Date "2024.06.04"]
[Round "1"]
[White "cassoulet"]
[Black "Chess_Star1234"]
[Result "1-0"]
[WhiteElo "2741"]
[BlackElo "2415"]
[TimeControl "180+1"]
[EndTime "14:05:25 PDT"]
[Termination "cassoulet won by resignation"]

1. d4 {[%clk 0:03:00.9]} 1... d5 {[%clk 0:02:54.7]} 2. Bf4 {[%clk 0:03:00.1]}
2... Nf6 {[%clk 0:02:48.6]} 3. e3 {[%clk 0:02:59.8]} 3... c5 {[%clk 0:02:47.3]}
4. c3 {[%clk 0:02:59.4]} 4... Nc6 {[%clk 0:02:46.4]} 5. Nd2 {[%clk 0:02:59.2]}
5... Bf5 {[%clk 0:02:46.5]} 6. Ngf3 {[%clk 0:02:57.4]} 6... e6 {[%clk
0:02:46.8]} 7. Be2 {[%clk 0:02:54.1]} 7... Bd6 {[%clk 0:02:46.1]} 8. Bg3 {[%clk
0:02:53.4]} 8... O-O {[%clk 0:02:45.5]} 9. O-O {[%clk 0:02:51.6]} 9... Ne4
{[%clk 0:02:45.7]} 10. Nxe4 {[%clk 0:02:51]} 10... Bxe4 {[%clk 0:02:46.6]} 11.
Qb3 {[%clk 0:02:39.9]} 11... Bxg3 {[%clk 0:02:37.5]} 12. hxg3 {[%clk 0:02:39.7]}
12... Qb6 {[%clk 0:02:37.6]} 13. dxc5 {[%clk 0:02:37.1]} 13... Qxc5 {[%clk
0:02:36.9]} 14. Nd4 {[%clk 0:02:34.2]} 14... Rab8 {[%clk 0:02:04]} 15. Rac1
{[%clk 0:02:28]} 15... Rfc8 {[%clk 0:01:34]} 16. Rfd1 {[%clk 0:02:27.4]} 16...
a6 {[%clk 0:01:26.3]} 17. c4 {[%clk 0:02:25.7]} 17... Nxd4 {[%clk 0:00:47.7]}
18. exd4 {[%clk 0:02:19.9]} 18... dxc4 {[%clk 0:00:45.6]} 19. dxc5 {[%clk
0:01:58.6]} 19... cxb3 {[%clk 0:00:45.3]} 20. axb3 {[%clk 0:01:59.3]} 20... b6
{[%clk 0:00:26.9]} 21. cxb6 {[%clk 0:01:47.8]} 21... Rxc1 {[%clk 0:00:27.8]} 22.
Rxc1 {[%clk 0:01:47.4]} 22... a5 {[%clk 0:00:28.5]} 23. Ba6 {[%clk 0:01:39.8]}
23... g6 {[%clk 0:00:22.8]} 24. Rc8+ {[%clk 0:01:39]} 24... Rxc8 {[%clk
0:00:17.6]} 25. Bxc8 {[%clk 0:01:39.9]} 25... Kf8 {[%clk 0:00:17.2]} 26. b7
{[%clk 0:01:40.3]} 26... Bxb7 {[%clk 0:00:17.7]} 27. Bxb7 {[%clk 0:01:41.2]}
27... Ke7 {[%clk 0:00:18.6]} 28. Kf1 {[%clk 0:01:40.8]} 28... Kd6 {[%clk
0:00:19.5]} 29. Ke2 {[%clk 0:01:40.6]} 29... Kc5 {[%clk 0:00:16.7]} 30. Kd3
{[%clk 0:01:40.6]} 30... Kb6 {[%clk 0:00:16.6]} 31. Bf3 {[%clk 0:01:39.6]} 31...
f5 {[%clk 0:00:16.9]} 32. Kd4 {[%clk 0:01:39.2]} 32... Kb5 {[%clk 0:00:16.4]}
33. Ke5 {[%clk 0:01:39.4]} 33... Kb4 {[%clk 0:00:17.3]} 34. Bd1 {[%clk
0:01:39.2]} 1-0

[Event "Late-Titled-Tuesday-Blitz-June-04-2024"]
[Site "Chess.com"]
[Date "2024.06.04"]
[Round "1"]
[White "TigrVShlyape"]
[Black "Chaubunagungamaug1"]
[Result "1-0"]
[WhiteElo "2892"]
[BlackElo "2471"]
[TimeControl "180+1"]
[EndTime "14:05:30 PDT"]
[Termination "TigrVShlyape won by resignation"]

1. d4 {[%clk 0:03:00.9]} 1... d5 {[%clk 0:02:58.6]} 2. Bf4 {[%clk 0:03:01]} 2...
Nf6 {[%clk 0:02:58.5]} 3. e3 {[%clk 0:03:01.3]} 3... c5 {[%clk 0:02:58.8]} 4. c3
{[%clk 0:03:01.6]} 4... Nc6 {[%clk 0:02:57.8]} 5. Nd2 {[%clk 0:03:01.6]} 5...
Bf5 {[%clk 0:02:57.2]} 6. Qb3 {[%clk 0:03:00]} 6... Qc8 {[%clk 0:02:54]} 7. a4
{[%clk 0:02:58.6]} 7... e6 {[%clk 0:02:51.4]} 8. Ngf3 {[%clk 0:02:58.5]} 8...
Be7 {[%clk 0:02:49.7]} 9. Be2 {[%clk 0:02:57.6]} 9... O-O {[%clk 0:02:49.6]} 10.
h3 {[%clk 0:02:56.3]} 10... h6 {[%clk 0:02:48.5]} 11. O-O {[%clk 0:02:55.6]}
11... Ne4 {[%clk 0:02:30.4]} 12. Nxe4 {[%clk 0:02:52.8]} 12... Bxe4 {[%clk
0:02:31.3]} 13. Nd2 {[%clk 0:02:52.2]} 13... Bg6 {[%clk 0:02:27.1]} 14. a5
{[%clk 0:02:49.5]} 14... Rd8 {[%clk 0:01:41.8]} 15. Rfc1 {[%clk 0:02:44.9]}
15... c4 {[%clk 0:01:29]} 16. Qa4 {[%clk 0:02:41.7]} 16... Bd6 {[%clk
0:01:23.7]} 17. Bxd6 {[%clk 0:02:40.6]} 17... Rxd6 {[%clk 0:01:24.6]} 18. b3
{[%clk 0:02:40.1]} 18... cxb3 {[%clk 0:01:23.1]} 19. Nxb3 {[%clk 0:02:37.7]}
19... e5 {[%clk 0:01:09.2]} 20. Nc5 {[%clk 0:02:22.2]} 20... Nxa5 {[%clk
0:00:41.8]} 21. Qxa5 {[%clk 0:02:10.8]} 21... b6 {[%clk 0:00:40.1]} 22. Qa6
{[%clk 0:02:07.6]} 22... Rc6 {[%clk 0:00:20.6]} 23. Qxc8+ {[%clk 0:02:05.8]}
23... Raxc8 {[%clk 0:00:21.5]} 24. Nd3 {[%clk 0:02:02.3]} 24... exd4 {[%clk
0:00:19.6]} 25. cxd4 {[%clk 0:01:58.4]} 25... Rc4 {[%clk 0:00:18.6]} 26. Rd1
{[%clk 0:01:52.6]} 26... a5 {[%clk 0:00:18.4]} 27. Ne5 {[%clk 0:01:50.1]} 27...
Rc2 {[%clk 0:00:18.2]} 28. Nxg6 {[%clk 0:01:50.2]} 28... fxg6 {[%clk 0:00:17.2]}
29. Bf3 {[%clk 0:01:50.4]} 29... Rb2 {[%clk 0:00:12.2]} 30. Bxd5+ {[%clk
0:01:49.9]} 30... Kh7 {[%clk 0:00:12.7]} 31. Rdb1 {[%clk 0:01:48.8]} 31... Rcc2
{[%clk 0:00:09.3]} 32. Rxb2 {[%clk 0:01:48.7]} 32... Rxb2 {[%clk 0:00:10.2]} 33.
h4 {[%clk 0:01:46.4]} 33... g5 {[%clk 0:00:08.1]} 34. h5 {[%clk 0:01:46.4]}
34... g6 {[%clk 0:00:07.7]} 35. Be4 {[%clk 0:01:46.2]} 35... Kg7 {[%clk
0:00:08.2]} 36. hxg6 {[%clk 0:01:45.3]} 1-0